Cogmind - Beta 16 @@@ ROGUE MODE // 2025.11.16 @ 11:39:53 Player: omewwes Result: Destroyed by H-88 Terminator with KE Penetrator Performance ------------- Evolutions (8) 4000 Regions Visited (21) 4200 Robots Destroyed (292) 1460 Value Destroyed (14560) 14560 Prototype IDs (75) 1500 Alien Tech Used (3) 600 Bonus (9875) 9875 TOTAL SCORE: 36195 Bonus ------- High Alert Combat Kills 1878 Follower Combat Kills 897 Met Data Miner 300 Met Zhirov 300 Found Hidden Lab 3000 Scanned by Researcher 500 Pursued by Intercept 1000 Acquired SGEMP 2000 Cogmind --------- Core Integrity 0/1450 Matter 50/300 Energy 99/100 System Corruption 23% Temperature Cool (0) Movement Core (50) Location -2/Research Parts ------- > --- POWER (2) -------- (None) > --- PROPULSION (5) --- (None) > --- UTILITY (14) ----- Advanced Heat Sink Experimental Targeting Computer System Mapper > --- WEAPON (2) ------- (None) > --- INVENTORY (5) ---- Small Matter Pod (8) Transdimensional Reconstructor Z-bomb Delivery System SGEMP Prototype Peak State ------------ > --- POWER ------------ Cooled Antimatter Reactor Quantum Reactor > --- PROPULSION ------- Myomer Leg Centrium Leg Centrium Leg High-density Centrium Leg High-density Centrium Leg > --- UTILITY ---------- Power Amplifier Advanced Heat Sink Experimental Coolant Injector Experimental Energy Well Long-range Sensor Array Experimental Signal Interpreter Experimental Targeting Computer Experimental Targeting Computer Layered Medium Armor Plating Centrium Heavy Armor Plating Experimental Thermal Defense Suite System Mapper Ghost Barrier > --- WEAPON ----------- Warp Cannon Z-bomb Delivery System > --- INVENTORY -------- Advanced Heat Sink Transdimensional Reconstructor Enhanced Hardcell Cannon SGEMP Prototype [Rating: 196] Favorites ----------- Power Cold Fusion Reactor Engine Angular Momentum Engine Power Core Neutrino Core Reactor Cold Fusion Reactor Propulsion Enhanced Armored Medium Treads Treads Enhanced Armored Medium Treads Leg Flexi-carbon Leg Wheel Wheel Hover Unit Aerolev Unit Flight Unit Cooled VTOL Module Utility Improved Targeting Computer Device Transmission Jammer Storage Large Storage Unit Processor Improved Targeting Computer Hackware Experimental Hacking Suite Protection Improved Weapon Shielding Weapon Enhanced Nova Cannon Energy Gun Medium Laser Energy Cannon Enhanced Nova Cannon Ballistic Gun Enhanced Autogun Ballistic Cannon Light Cannon Launcher Heavy Rocket Launcher Impact Weapon Mace Slashing Weapon Great Axe Build | -11 -10 -10 -10 -8 -7 -6 -6 -6 -6 -5 -5 -5 -5 -5 -4 -4 -4 -4 -3 -3 -2 ------- Run | Yrd Mat Min Sub Mat Fac Fac Low Low Dat Pro Fac Upp Upp Zhi Pro Fac Arm Lab Res Tes Res Slots Evolved 16 | . . . . 4 2 2 . . . . 2 . . . . 2 . . 2 . 2 Power 1 | . . . . . . 1 . . . . . . . . . . . . . . . Propulsion 3 | . . . . 1 1 1 . . . . . . . . . . . . . . . Utility 12 | . . . . 3 1 . . . . . 2 . . . . 2 . . 2 . 2 Weapon . | . . . . . . . . . . . . . . . . . . . . . . Parts Attached 251 | 6 3 1 . 22 9 20 4 1 . 1 26 6 3 5 6 14 33 17 9 52 13 Power 37 | 1 . . . 3 . 3 . . . . 4 2 . 1 1 2 7 2 1 9 1 Engine 6 | 1 . . . 2 . . . . . . 2 1 . . . . . . . . . Core 6 | . . . . 1 . . . . . . 1 1 . . 1 . 2 . . . . Reactor 25 | . . . . . . 3 . . . . 1 . . 1 . 2 5 2 1 9 1 Propulsion 62 | 2 . . . 8 3 6 2 1 . . 5 2 1 . 3 2 5 3 2 11 6 Treads 14 | 2 . . . . . . . . . . . 1 . . 1 1 5 3 . 1 . Leg 35 | . . . . 3 . 6 2 1 . . 2 1 . . 2 1 . . 2 10 5 Wheel 4 | . . . . . . . . . . . 3 . 1 . . . . . . . . Hover 2 | . . . . . 1 . . . . . . . . . . . . . . . 1 Flight 7 | . . . . 5 2 . . . . . . . . . . . . . . . . Utility 106 | 1 1 1 . 4 3 10 1 . . . 12 2 2 4 2 5 17 8 4 25 4 Device 57 | . 1 1 . 2 . 5 1 . . . 9 1 . 2 2 2 9 4 4 11 3 Storage 7 | 1 . . . 1 . . . . . . . . . 1 . 1 1 . . 2 . Processor 15 | . . . . . 2 2 . . . . 1 . . . . 1 3 . . 6 . Hackware 10 | . . . . 1 . 1 . . . . . . . . . 1 1 3 . 3 . Protection 17 | . . . . . 1 2 . . . . 2 1 2 1 . . 3 1 . 3 1 Artifact . | . . . . . . . . . . . . . . . . . . . . . . Weapon 46 | 2 2 . . 7 3 1 1 . . 1 5 . . . . 5 4 4 2 7 2 Energy Gun 7 | 1 . . . 2 . . . . . . . . . . . . 1 2 . 1 . Energy Cannon 18 | . . . . . 1 . . . . . 5 . . . . 4 2 2 1 3 . Ballistic Gun 6 | 1 . . . 2 1 . . . . . . . . . . . . . . 1 1 Ballistic Cannon 5 | . 2 . . 1 . 1 . . . . . . . . . . . . . . 1 Launcher 6 | . . . . 1 . . 1 . . . . . . . . 1 . . 1 2 . Special Weapon . | . . . . . . . . . . . . . . . . . . . . . . Impact Weapon 3 | . . . . 1 . . . . . 1 . . . . . . 1 . . . . Slashing Weapon 1 | . . . . . 1 . . . . . . . . . . . . . . . . Piercing Weapon . | . . . . . . . . . . . . . . . . . . . . . . Special Melee Weapon . | . . . . . . . . . . . . . . . . . . . . . . Unidentified Prototypes 53 | . . 1 . 6 3 1 . . . . . . . 4 . 2 9 9 3 15 . Parts Lost 99 | . . . . 3 . 2 . . . 4 8 2 7 . 8 6 3 6 2 27 21 Power 14 | . . . . 1 . . . . . . 2 . 1 . 1 1 . 2 1 3 2 Propulsion 27 | . . . . . . . . . . . 4 2 5 . . 2 . 2 1 6 5 Utility 48 | . . . . . . 2 . . . 3 2 . 1 . 6 2 3 2 . 15 12 Weapon 10 | . . . . 2 . . . . . 1 . . . . 1 1 . . . 3 2 Highest Loss Streak 17 | . . . . 3 . 1 . . . 3 4 2 3 . 4 4 1 3 2 8 17 To Critical Strikes . | . . . . . . . . . . . . . . . . . . . . . . Average Backups 7 | . 2 6 7 4 4 4 5 5 5 4 4 4 3 4 4 7 14 14 13 11 2 Power . | . . . . . . . 1 1 1 1 . . . . . . 1 1 . . . Propulsion . | . . . . . 2 . . . . . . . . . . . 2 1 1 . . Utility 2 | . . 1 3 1 . 1 2 2 2 2 2 3 2 2 2 3 4 4 3 4 . Weapon 2 | . 2 5 4 2 1 2 2 2 2 1 1 1 1 1 1 2 4 6 6 4 . Tool/Special . | . . . . . . . . . . . . . . . . . . . . . . Unused Backups 20 | . . 1 . 3 . 1 . . . . . . . 1 . . 8 . . 4 2 Power 2 | . . . . . . . . . . . . . . . . . 1 . . 1 . Propulsion 2 | . . . . . . . . . . . . . . . . . . . . 2 . Utility 12 | . . . . 1 . 1 . . . . . . . 1 . . 7 . . 1 1 Weapon 3 | . . 1 . 2 . . . . . . . . . . . . . . . . . Tool/Special 1 | . . . . . . . . . . . . . . . . . . . . . 1 Average Slot Usage (%) 91 | . 94 100 100 86 91 96 100 100 100 85 94 96 86 70 64 92 96 95 99 96 80 Engine 2 | . 14 14 14 6 . . . . . . 2 2 5 5 2 . . . . . . Core 1 | . . . . 2 7 . . . . . 2 7 5 3 . 2 . . . . . Reactor 6 | . . . . . . 10 13 13 13 13 5 . . 1 5 7 9 9 9 8 5 Treads 8 | . 28 28 28 8 . . . . . . . 2 4 5 6 12 25 25 19 . . Leg 12 | . . . . 12 . 22 33 33 33 33 20 16 6 . 1 12 . . 2 21 17 Flight 1 | . . . . 4 29 9 . . . . . . . . . . . . . . . Device 19 | . 8 14 14 26 20 16 18 20 20 9 26 25 22 20 16 16 15 11 18 20 18 Storage 4 | . 14 14 14 3 . . . . . . . . . 1 5 9 7 5 7 8 3 Processor 10 | . . . . . 6 7 13 13 13 13 13 11 11 11 11 14 11 15 10 10 12 Hackware 4 | . . . . 5 7 7 . . . . . . . . . 4 9 12 14 9 7 Protection 4 | . . . . . 1 3 6 6 6 1 2 8 11 11 3 . 3 3 4 3 6 Energy Cannon 6 | . . . . . . 4 6 6 6 6 10 10 10 6 7 9 9 8 8 7 2 Ballistic Cannon 2 | . 12 28 28 5 . 4 5 6 6 1 . . . . . . . . . . 1 Peak Build Rating 196 | 6 7 16 9 48 56 67 66 66 65 65 82 84 83 78 79 113 140 152 171 185 196 Average Rating 95 | 4 6 7 9 36 52 61 65 65 65 54 75 80 73 65 69 101 133 138 164 170 162 On Entrance 68 | . 6 7 9 9 46 54 62 66 65 65 51 82 83 68 78 76 87 139 151 169 138 Avg Prop Armor Cover (%) 6 | . . . . 5 . 1 . . . . 8 7 14 . 7 10 11 5 2 3 2 Naked Turns . | . . . . . . . . . . . . . . . . . . . . . . Heaviest Build 120 | 14 17 17 17 29 17 45 46 44 44 44 68 72 76 72 76 91 94 100 108 120 108 Greatest Support 184 | 40 40 40 40 44 22 76 92 92 90 90 90 83 55 28 56 83 184 175 175 180 149 Greatest Overweight (x) 7 | . . . . . . 1 . . . . 5 6 7 2 2 1 1 . . 1 1 Average Overweight (x) . | . . . . . . . . . . . . 2 4 1 1 . . . . . . Largest Inventory Capacity 15 | 8 8 8 8 10 5 5 5 5 5 5 5 5 5 5 5 15 15 15 15 15 5 Average Capacity 8 | 6 8 8 8 6 5 5 5 5 5 5 5 5 5 5 5 13 15 15 15 13 5 Most Carried 15 | . 5 8 8 10 5 5 5 5 5 5 5 5 5 5 5 14 15 15 15 15 5 Average Carried 7 | . 2 7 8 4 4 4 5 4 5 4 4 4 3 4 4 7 14 14 14 13 4 Final Capacity 15 | 8 8 8 8 5 5 5 5 5 5 5 5 5 5 5 5 15 15 15 15 5 5 Final Carried 15 | . 5 8 8 5 5 5 5 5 5 4 4 5 3 5 3 14 15 14 15 5 5 Scrap Suit Usage (%) 6 | . . . . 59 100 18 . . . . . . . . . . . . . . . Parts Cannibalized 6 | . . . . 6 . . . . . . . . . . . . . . . . . Class Distribution -------------------- 44% | Mutant 25% | Hacker-Mutant 24% | Scavenger-Mutant 3% | Sprinter Dominant Class ---------------- Mutant | -10/Materials Mutant | -10/Mines Mutant | -10/Subcaves Mutant | -8/Materials Sprinter | -7/Factory Mutant | -6/Factory Mutant | -6/Lower Caves Mutant | -6/Lower Caves Mutant | -6/Data Miner Mutant | -5/Proximity Caves Mutant | -5/Factory Scavenger-Mutant | -5/Upper Caves Scavenger-Mutant | -5/Upper Caves Mutant | -5/Zhirov Mutant | -4/Proximity Caves Scavenger-Mutant | -4/Factory Hacker-Mutant | -4/Armory Hacker-Mutant | -4/Lab Hacker-Mutant | -3/Research Hacker-Mutant | -3/Testing Hacker-Mutant | -2/Research Resources | -11 -10 -10 -10 -8 -7 -6 -6 -6 -6 -5 -5 -5 -5 -5 -4 -4 -4 -4 -3 -3 -2 ----------- Run | Yrd Mat Min Sub Mat Fac Fac Low Low Dat Pro Fac Upp Upp Zhi Pro Fac Arm Lab Res Tes Res Matter Collected 7144 | 97 264 140 103 771 87 502 268 157 . 120 359 176 312 123 132 159 1009 170 55 1405 735 Remotely . | . . . . . . . . . . . . . . . . . . . . . . Salvage Created 14306 | . 222 59 99 1019 312 555 317 254 . 254 690 197 757 382 644 401 1912 594 777 3877 984 Parts 540 | . 7 7 2 35 9 33 19 4 . 11 38 6 36 . 21 13 74 19 29 145 32 Haulers Intercepted 13 | . 1 . . 4 3 2 . . . . . . . . . 1 . . 1 1 . Recyclers Shooed 6 | . 1 . . 2 . 1 . 1 . . . . . . . 1 . . . . . Parts Field Recycled . | . . . . . . . . . . . . . . . . . . . . . . Retrieved Matter . | . . . . . . . . . . . . . . . . . . . . . . Parts Self-Destructed 80 | . . . . . . . 18 3 . 7 . 4 29 . 19 . . . . . . Prevented 9 | . . . . . . . 3 . . . . 6 . . . . . . . . . Parts Restored . | . . . . . . . . . . . . . . . . . . . . . . Kills | -11 -10 -10 -10 -8 -7 -6 -6 -6 -6 -5 -5 -5 -5 -5 -4 -4 -4 -4 -3 -3 -2 ------- Run | Yrd Mat Min Sub Mat Fac Fac Low Low Dat Pro Fac Upp Upp Zhi Pro Fac Arm Lab Res Tes Res Combat Hostiles Destroyed 231 | . 2 5 3 16 3 10 11 2 . 9 9 3 22 . 11 4 27 8 10 56 20 Melee 4 | . . . . . 2 2 . . . . . . . . . . . . . . . Guns 9 | . . . . 7 . . . . . . . . . . . . 2 . . . . Cannons 137 | . 2 5 3 2 . 8 5 2 . 3 8 . 7 . 9 3 18 8 8 40 6 AOE 58 | . . . . 7 . . 6 . . 6 . 3 14 . . . 4 . 2 7 9 Classes Destroyed 22 | . 4 1 1 3 1 2 3 . . . 2 . 1 . . . . . . 4 . Worker 15 | . . . . 2 . . . . . . . . . . . . . . 1 6 6 Builder 10 | . . . . . . 3 . . . . 1 . . . . . . . . 4 2 Tunneler 3 | . . . . . . . . . . . 3 . . . . . . . . . . Hauler 13 | . 1 . . 4 3 2 . . . . . . . . . 1 . . 1 1 . Recycler 11 | . 1 . . 4 . . . . . . . . . . . . . . 2 2 2 Mechanic 2 | . . . . . 1 . . . . . . . . . . . . . . 1 . Operator 3 | . . . . 1 . . . . . . . . . . . 1 . . . . 1 Watcher 3 | . 1 . . 2 . . . . . . . . . . . . . . . . . Swarmer 64 | . . 3 . 4 . 7 5 . . 4 . 3 12 . 4 . . . 6 7 9 Grunt 73 | . 2 2 . 11 3 . . 1 . 2 2 . 2 . 6 . 9 7 4 17 5 Brawler 5 | . . . . . . . 1 . . . . . 1 . 1 . 1 . . 1 . Duelist 6 | . . . . . . . 1 1 . . . . 3 . . . . . . . 1 Researcher 1 | . . . . . . . . . . . . . . . . . . . . 1 . Sentry 18 | . . . . 1 . 2 1 . . 1 2 . 1 . . 1 6 . . 2 1 Specialist 2 | . . . . . . . . . . . 2 . . . . . . . . . . Hunter 23 | . . . . . . . 3 . . 2 . . 2 . . 3 5 . . 6 2 Programmer 21 | . . . . . . 1 . . . . 3 . . . . . 6 . . 11 . Q-Series 1 | . . . . . . . . . . . . . . . . . . . . 1 . Behemoth 1 | . . . . . . . . . . . . . 1 . . . . . . . . Tracker 6 | . . . . . . . . . . . . . . . . . . . . 4 2 Combat Programmer 4 | . . . . . . . . . . . . . . . . . . . . 4 . Striker 2 | . . . . . . . . . . . . . . . . . . . . 2 . Alpha 7 1 | . . . . . . . . . . . . . . . . . . . . 1 . Subdweller 3 | . . . 3 . . . . . . . . . . . . . . . . . . Packrat 3 | . . . . . . . . 2 . . . . 1 . . . . . . . . Best Kill Streak 10 | . 3 3 3 5 3 4 5 1 . 4 2 3 10 . 4 2 7 8 6 10 8 Combat Bots Only 10 | . 2 3 3 4 2 4 5 1 . 4 2 3 10 . 4 2 7 8 4 9 7 Max Kills in Single Turn 5 | . 1 1 1 2 2 2 2 1 . 2 1 2 4 . 1 1 2 1 3 5 5 Gunslinging . | . . . . . . . . . . . . . . . . . . . . . . Exploded 4 | . . . . 2 . . 2 . . 2 . 2 4 . . . 2 . 2 3 4 Melee 1 | . . . . . 1 1 . . . . . . . . . . . . . . . Uniques/NPCs Destroyed 1 | . . . . . . . . . . . . . . . . . . 1 . . . A5 (-4/Lab) Combat | -11 -10 -10 -10 -8 -7 -6 -6 -6 -6 -5 -5 -5 -5 -5 -4 -4 -4 -4 -3 -3 -2 -------- Run | Yrd Mat Min Sub Mat Fac Fac Low Low Dat Pro Fac Upp Upp Zhi Pro Fac Arm Lab Res Tes Res Hostile Shots Fired 1934 | . 5 18 15 104 46 124 29 8 . 31 56 22 126 . 63 116 158 142 49 459 363 Missed 611 | . 1 5 5 56 24 54 10 3 . 4 12 5 38 . 15 41 47 17 12 141 121 Hits 1323 | . 4 13 10 48 22 70 19 5 . 27 44 17 88 . 48 75 111 125 37 318 242 Melee 7 | . . . . . . . 1 3 . . . . . . 1 . . . . 2 . Projectile 1316 | . 4 13 10 48 22 70 18 2 . 27 44 17 88 . 47 75 111 125 37 316 242 AOE 2 | . . . . . . . . . . . . . . . . . 1 . 1 . . Critical Strikes 71 | . . . . 2 . 1 1 . . 1 2 2 1 . 3 . 13 2 5 21 17 Actively Blocked 2 | . . . . . . 1 . . . . . 1 . . . . . . . . . Part Disruptions 5 | . . . . . . . . . . . . . . . . . . 1 . 2 2 Damage Taken 23251 | . 56 141 227 725 352 841 372 146 . 584 1021 204 908 . 693 1103 2296 2022 425 5609 5526 Core 3201 | . . 10 6 104 33 151 61 19 . 18 127 30 66 . 81 176 122 234 12 489 1462 Absorbed by Shields 3043 | . . . . . . . . . . . 96 48 448 . 200 304 193 . 301 1453 . Redirected to Shielding 460 | . . . . . 13 140 . . . . 114 35 94 . 64 . . . . . . Ignored by Resistances 1075 | . . . . . . 40 . . . . 34 59 . . . . . 572 144 107 119 Regen/Repaired (Parts) 691 | . . . . 52 42 . . . . . . . . . . . . 105 64 428 . Core Remaining (%) 80 | 100 . . 93 81 95 . . . . 70 . . . . 69 . . 78 . 61 . Volleys Fired 734 | . 15 12 11 53 . 34 24 14 . 21 30 13 39 9 32 21 76 36 34 191 69 Largest 2 | . 2 2 2 2 . 2 2 2 . 2 2 2 2 2 2 2 2 2 2 2 1 Hottest 240 | . 70 60 60 86 . 130 130 130 . 130 240 240 240 240 240 225 240 240 240 240 100 Shots Fired 1178 | . 30 24 22 88 . 68 36 28 . 28 61 23 63 20 38 41 139 67 65 268 69 Gun 78 | . 14 . . 53 . . . . . . . . . . . . 11 . . . . Cannon 1043 | . 16 24 22 26 . 68 27 28 . 21 61 19 51 20 38 41 125 67 64 263 62 Launcher 57 | . . . . 9 . . 9 . . 7 . 4 12 . . . 3 . 1 5 7 Special . | . . . . . . . . . . . . . . . . . . . . . . Kinetic 254 | . 23 24 22 78 . 34 15 14 . 12 . . . . . . . . . . 32 Thermal 823 | . 7 . . 1 . 34 12 14 . 9 53 19 51 20 38 35 106 67 64 263 30 Explosive 57 | . . . . 9 . . 9 . . 7 . 4 12 . . . 3 . 1 5 7 Electromagnetic 44 | . . . . . . . . . . . 8 . . . . 6 30 . . . . Robot Hit Streak 49 | . 5 5 7 12 . 7 5 6 . 9 16 3 8 6 19 29 15 10 11 38 49 Robot Miss Streak 6 | . 3 2 2 3 . 6 2 5 . 1 2 3 4 1 4 3 2 3 3 3 2 Penetration Max 1 | . . . . . . . . . . 1 . . . . . . . . . . . Secondary Targets . | . . . . . . . . . . . . . . . . . . . . . . Shots Hit Robots 749 | . 16 15 12 56 16 42 19 17 . 17 35 9 34 13 26 31 97 44 35 179 36 Core Hits 415 | . 7 6 6 50 2 16 21 8 . 17 13 4 29 8 13 10 46 21 19 93 26 Critical Kills 22 | . 1 . . . . . . . . . 1 . 1 . 2 . 1 . . 11 5 Critical Parts Destroyed 3 | . . . . 1 2 . . . . . . . . . . . . . . . . Critical Strikes 35 | . 1 1 1 1 2 4 2 1 . . 1 . 1 . 2 . 1 . . 11 6 Meltdown 21 | . . . . . . . . . . . 1 . 1 . 2 . 1 . . 11 5 Destroy 1 | . 1 . . . . . . . . . . . . . . . . . . . . Blast 9 | . . 1 1 . . 3 2 1 . . . . . . . . . . . . 1 Smash 3 | . . . . 1 2 . . . . . . . . . . . . . . . . Sever 1 | . . . . . . 1 . . . . . . . . . . . . . . . Melee Attacks 56 | . . . . 5 30 21 . . . . . . . . . . . . . . . Impact 35 | . . . . 5 26 4 . . . . . . . . . . . . . . . Slashing 21 | . . . . . 4 17 . . . . . . . . . . . . . . . Piercing . | . . . . . . . . . . . . . . . . . . . . . . Sneak Attacks 7 | . . . . 2 3 2 . . . . . . . . . . . . . . . Combat Hostiles 1 | . . . . . . 1 . . . . . . . . . . . . . . . Follow-up Attacks 8 | . . . . 1 4 3 . . . . . . . . . . . . . . . Damage Inflicted 44257 | . 243 263 206 2196 681 1765 1278 626 . 1280 1545 625 3087 595 1499 1525 4542 1910 1851 12774 5766 Guns 1011 | . 70 . . 583 . . . . . . . . . . . . 358 . . . . Cannons 29705 | . 169 262 206 256 . 1213 627 626 . 613 1478 313 1380 595 1499 1516 3485 1910 1519 9836 2202 Explosions 11893 | . . . . 1070 . . 651 . . 667 . 312 1699 . . . 699 . 331 2938 3526 Melee 1483 | . . . . 287 681 515 . . . . . . . . . . . . . . . Ramming 165 | . 4 1 . . . 37 . . . . 67 . 8 . . 9 . . 1 . 38 Kinetic 3690 | . 227 262 206 819 . 416 202 253 . 311 . . . . . . . . . . 994 Thermal 26084 | . 12 . . 20 . 797 425 373 . 302 1391 313 1380 595 1499 1337 3167 1910 1519 9836 1208 Explosive 11801 | . . . . 1070 . . 651 . . 667 . 312 1699 . . . 607 . 331 2938 3526 Electromagnetic 1034 | . . . . . . . . . . . 87 . . . . 179 768 . . . . Impact 991 | . . . . 287 681 23 . . . . . . . . . . . . . . . Slashing 492 | . . . . . . 492 . . . . . . . . . . . . . . . Piercing . | . . . . . . . . . . . . . . . . . . . . . . Highest Corruption 35 | . . . . 2 4 1 1 1 1 1 6 7 7 7 7 . 4 11 . 35 23 Average Corruption 6 | . . . . 2 4 1 1 1 1 1 5 6 7 7 7 . 3 10 . 13 10 Corruption Purged . | . . . . . . . . . . . . . . . . . . . . . . Corruption Blocked . | . . . . . . . . . . . . . . . . . . . . . . Effects 261 | . . . . 4 6 2 10 3 . 4 17 19 25 22 26 . 32 17 . 71 3 Message Errors 58 | . . . . 2 2 2 1 2 . 2 3 4 5 2 6 . 7 4 . 14 2 Matter Fused 50 | . . . . . . . 2 . . 1 4 3 8 2 4 . 8 4 . 13 1 Heat Flow Errors 37 | . . . . . 1 . 1 . . . 4 5 3 4 6 . 3 1 . 9 . Energy Discharges 30 | . . . . 1 . . 2 . . . . 3 4 3 5 . 3 1 . 8 . Parts Rejected 7 | . . . . 1 2 . . . . . . . 1 . . . . . . 3 . Parts Fused 3 | . . . . . . . 1 . . . 1 . . . . . 1 . . . . Data Loss (minor) 28 | . . . . . . . 2 1 . . 1 3 4 4 2 . 4 1 . 6 . Data Loss (major) 10 | . . . . . . . . . . . 1 . . 3 1 . . 2 . 3 . Misfires 11 | . . . . . . . 1 . . 1 2 1 . 2 1 . 1 . . 2 . Alerts 8 | . . . . . 1 . . . . . . . . 2 . . 1 1 . 3 . Misdirections 2 | . . . . . . . . . . . . . . . . . . . . 2 . Weapon Failures 17 | . . . . . . . . . . . 1 . . . 1 . 4 3 . 8 . Overload Shots 55 | . . . . . . 16 9 10 . 7 7 . . . . . 6 . . . . Effects 3 | . . . . . . 1 1 1 . . . . . . . . . . . . . Energy Bleed 3 | . . . . . . 1 1 1 . . . . . . . . . . . . . Overflow Damage 3589 | . . . . 166 150 57 41 22 . 62 130 70 208 47 62 47 36 . 98 1070 1323 Projectiles 1138 | . . . . . 5 57 41 22 . 35 130 70 135 47 62 47 14 . 69 291 113 Explosions 2142 | . . . . 2 . . . . . 27 . . 73 . . . 22 . 29 779 1210 Melee 309 | . . . . 164 145 . . . . . . . . . . . . . . . . Knockbacks 25 | . 2 . 1 3 4 . 3 1 . 2 . . . . . . . . . . 9 Impact 3 | . . . . . 3 . . . . . . . . . . . . . . . . Kinetic 21 | . 2 . 1 3 . . 3 1 . 2 . . . . . . . . . . 9 Secondary 1 | . . . . . 1 . . . . . . . . . . . . . . . . Self-Inflicted Damage 282 | . . . . 31 . . 25 . . 50 18 . 41 . . . . . 28 89 . Shots 7 | . . . . 2 . . 1 . . 1 . . 1 . . . . . 1 1 . Rammed 7 | . 1 1 . . . . . . . . 1 . 3 . . . . . 1 . . Targets Rammed 19 | . 1 1 . . . 2 . . . . 4 . 3 . . 2 . . 1 . 5 Kicked 12 | . . . . . . 2 . . . . 3 . . . . 2 . . . . 5 Crushed . | . . . . . . . . . . . . . . . . . . . . . . Highest Temperature 461 | . 30 60 . 36 221 150 72 80 . 31 260 162 461 316 185 207 395 227 355 199 178 Average Temperature 96 | . 17 38 . 8 64 76 36 43 . 13 73 68 177 80 80 99 95 130 119 100 90 Received Heat Transfer 2940 | . 30 60 30 378 117 66 . 18 . 72 99 . 9 . 82 159 297 489 108 268 658 Effects 10 | . . . . . . . . . . . . . 5 1 . . 4 . . . . Shutdowns 6 | . . . . . . . . . . . . . 2 . . . 4 . . . . Matter Decay 1 | . . . . . . . . . . . . . . 1 . . . . . . . Damage (minor) 1 | . . . . . . . . . . . . . 1 . . . . . . . . Damage (major) 2 | . . . . . . . . . . . . . 2 . . . . . . . . Siege Activations . | . . . . . . . . . . . . . . . . . . . . . . Martial Activations . | . . . . . . . . . . . . . . . . . . . . . . Shielding Activations . | . . . . . . . . . . . . . . . . . . . . . . Robots Disrupted . | . . . . . . . . . . . . . . . . . . . . . . Combat Hostiles . | . . . . . . . . . . . . . . . . . . . . . . Robots Corrupted 8 | . . . . 3 2 . . . . . . . . . . 1 2 . . . . Combat Hostiles 4 | . . . . . 1 . . . . . . . . . . 1 2 . . . . Parts Fried 14 | . . . . 3 5 . . . . . . . . . . 3 3 . . . . Impact Corruptions 13 | . . . . 7 6 . . . . . . . . . . . . . . . . Robots Melted 21 | . . . . . . . . . . . 1 . 1 . 2 . 1 . . 11 5 Combat Hostiles 19 | . . . . . . . . . . . 1 . 1 . 2 . 1 . . 9 5 Parts Melted 84 | . . . . . . 2 1 . . . 8 . 5 . 6 1 9 2 3 32 15 Heat Transferred 21922 | . 37 . . 37 . 844 424 374 . 287 1279 259 1184 471 999 999 3055 1757 1332 7622 962 Parts Sabotaged 3 | . . . . . . . . . . . . . . . . . . . . 3 . Parts Stolen . | . . . . . . . . . . . . . . . . . . . . . . Parts Stripped . | . . . . . . . . . . . . . . . . . . . . . . Power Chain Reactions 3 | . . . . . . . . . . . . . . . . . 3 . . . . Alert | -11 -10 -10 -10 -8 -7 -6 -6 -6 -6 -5 -5 -5 -5 -5 -4 -4 -4 -4 -3 -3 -2 ------- Run | Yrd Mat Min Sub Mat Fac Fac Low Low Dat Pro Fac Upp Upp Zhi Pro Fac Arm Lab Res Tes Res Maximum Alert Level 3 | . . . . 2 2 1 . . . . . . . . . . 3 . . 3 3 Low Security (%) 53 | 100 100 100 . 60 . 27 . . . . 100 . . . . 100 25 . 100 39 . Level 1 13 | . . . . 34 80 72 . . . . . . . . . . 9 . . 6 . Level 2 21 | . . . . 4 19 . . . . . . . . . . . 46 . . 31 59 Level 3 11 | . . . . . . . . . . . . . . . . . 18 . . 22 40 Level 4 . | . . . . . . . . . . . . . . . . . . . . . . Level 5 . | . . . . . . . . . . . . . . . . . . . . . . High Security . | . . . . . . . . . . . . . . . . . . . . . . Max Security . | . . . . . . . . . . . . . . . . . . . . . . Peak Influence 1088 | . 60 85 . 458 413 298 . . . . 122 . . . . 46 1088 . 187 1021 894 Initial 573 | . . 18 . . 221 197 . . . . 15 . . . . 22 . . . 75 573 Average 282 | . 10 21 . 132 287 220 . . . . 57 . . . . 11 478 . 102 398 667 Influence Increases 8475 | . 86 135 . 786 302 365 254 72 . 215 463 162 640 15 250 149 1686 . 362 1882 651 Destroy 0b10 Robot/C 4820 | . 40 100 . 320 60 200 220 60 . 180 180 100 440 . 220 80 860 . 200 1160 400 Destroy 0b10 Robot/NC 330 | . 15 . . 65 20 25 . . . . 20 10 . 15 . 10 5 . 20 70 55 Destroy Leader 852 | . 14 20 . 62 6 54 30 10 . 20 60 20 50 . 30 22 150 . 22 212 70 Allied During Kill 329 | . . . . . . . 4 2 . . . 17 . . . . 299 . . 7 . Trap Triggered on 0b10 10 | . 10 . . . . . . . . . . . . . . . . . . . . Successful Hack 212 | . 7 . . 15 18 6 . . . . 41 . . . . 16 65 . . 44 . Disable Machine 480 | . . 15 . 15 15 30 . . . . 60 . . . . 15 105 . 45 165 15 Destroy Structure 587 | . . . . 54 3 20 . . . . 42 . . . . 6 142 . 60 164 96 Partial Spotted 45 | . . . . 15 . 15 . . . . . . . . . . 15 . . . . Lose Combat Pursuer 810 | . . . . 240 180 15 . . . 15 60 15 150 . . . 45 . 15 60 15 Influence Decreases 7771 | . 39 182 . 298 387 638 351 105 . 190 389 261 453 202 214 185 625 1061 228 995 968 Entered New Map 2374 | . . 29 . . 267 206 49 7 . . 10 37 . 187 . 14 . 1061 . 59 448 Time Decay 4032 | . 39 153 . 268 120 262 302 78 . 150 309 174 388 15 184 141 435 . 208 496 310 Lost Part 815 | . . . . 30 . 20 . . . 40 60 10 65 . 30 30 30 . 20 270 210 Lost Ally 250 | . . . . . . . . 20 . . 10 40 . . . . 160 . . 20 . Purge Threat 300 | . . . . . . 150 . . . . . . . . . . . . . 150 . Squads Dispatched 48 | . 1 . . 2 3 3 . . . . 6 . . . . 2 8 . 1 14 8 Investigation 4 | . . . . . . . . . . . 1 . . . . 1 1 . . . 1 Extermination 15 | . . . . . . 1 . . . . 2 . . . . 1 3 . 1 5 2 Reinforcement 21 | . 1 . . 2 2 2 . . . . 3 . . . . . 4 . . 4 3 Assault 3 | . . . . . . . . . . . . . . . . . . . . 2 1 Garrison 1 | . . . . . 1 . . . . . . . . . . . . . . . . Intercept 4 | . . . . . . . . . . . . . . . . . . . . 3 1 Searches Triggered . | . . . . . . . . . . . . . . . . . . . . . . Data Miner Redirects 1 | . . . . . . . . . . . . . . . . 1 . . . . . Construction Impeded 4 | . . . . 1 . . . . . . . . . . . . . . . 2 1 Haulers Reinforced 5 | . . . . . 2 1 . . . . 1 . . . . . . . . 1 . Active Scanning Responses . | . . . . . . . . . . . . . . . . . . . . . . Cargo Convoy Interrupts . | . . . . . . . . . . . . . . . . . . . . . . Stealth | -11 -10 -10 -10 -8 -7 -6 -6 -6 -6 -5 -5 -5 -5 -5 -4 -4 -4 -4 -3 -3 -2 --------- Run | Yrd Mat Min Sub Mat Fac Fac Low Low Dat Pro Fac Upp Upp Zhi Pro Fac Arm Lab Res Tes Res Distress Signals 14 | . . . . 4 . . . . . . . . . . . . 4 . . 4 2 Communications Jammed 21 | . . . . . . 1 . . . . 20 . . . . . . . . . . Distress Signals 20 | . . . . . . 1 . . . . 19 . . . . . . . . . . Times Spotted 367 | . 5 5 6 45 21 11 10 3 . 9 17 7 28 . 11 14 47 8 16 68 36 Peak Tracking Total 16 | . 2 3 3 13 12 4 4 3 . 4 6 4 10 . 4 6 7 8 4 5 16 Tactical Retreats 32 | . . . . 7 3 1 . . . 1 4 1 7 . . . 2 . 1 4 1 Traps | -11 -10 -10 -10 -8 -7 -6 -6 -6 -6 -5 -5 -5 -5 -5 -4 -4 -4 -4 -3 -3 -2 ------- Run | Yrd Mat Min Sub Mat Fac Fac Low Low Dat Pro Fac Upp Upp Zhi Pro Fac Arm Lab Res Tes Res Traps Triggered 17 | . . . 3 . 2 1 . . . . 1 . . . . 1 1 . . 7 1 Indirectly . | . . . . . . . . . . . . . . . . . . . . . . Trap Hack Attempts . | . . . . . . . . . . . . . . . . . . . . . . Triggered . | . . . . . . . . . . . . . . . . . . . . . . Disarmed 12 | . . . . . . . . . . . . . . . . . . . . 12 . Reprogrammed 4 | . 4 . . . . . . . . . . . . . . . . . . . . Reused 1 | . 1 . . . . . . . . . . . . . . . . . . . . Traps Extracted . | . . . . . . . . . . . . . . . . . . . . . . Installed . | . . . . . . . . . . . . . . . . . . . . . . Triggered 1 | . 1 . . . . . . . . . . . . . . . . . . . . Machines | -11 -10 -10 -10 -8 -7 -6 -6 -6 -6 -5 -5 -5 -5 -5 -4 -4 -4 -4 -3 -3 -2 ---------- Run | Yrd Mat Min Sub Mat Fac Fac Low Low Dat Pro Fac Upp Upp Zhi Pro Fac Arm Lab Res Tes Res Machines Disabled 39 | . . 1 . 1 1 2 1 . . . 4 . . 2 . 2 7 2 3 12 1 Max in Single Turn 1 | . . 1 . 1 1 1 1 . . . 1 . . 1 . 1 1 1 1 1 1 Garrison Access 2 | . . . . . . . . . . . . . . . . . . . 1 1 . Machines Repaired . | . . . . . . . . . . . . . . . . . . . . . . Machines Dismantled . | . . . . . . . . . . . . . . . . . . . . . . Machines Sabotaged . | . . . . . . . . . . . . . . . . . . . . . . Overloaded Fab Kills . | . . . . . . . . . . . . . . . . . . . . . . Hacking | -11 -10 -10 -10 -8 -7 -6 -6 -6 -6 -5 -5 -5 -5 -5 -4 -4 -4 -4 -3 -3 -2 --------- Run | Yrd Mat Min Sub Mat Fac Fac Low Low Dat Pro Fac Upp Upp Zhi Pro Fac Arm Lab Res Tes Res Machines Accessed 60 | . 1 . . 7 6 1 2 . 4 . 5 1 . 6 . 4 8 1 2 11 1 Terminals 34 | . 1 . . 6 5 1 . . . . . . . . . 4 7 . 1 8 1 Fabricators 4 | . . . . . . . . . . . 3 . . . . . 1 . . . . Repair Stations 1 | . . . . . 1 . . . . . . . . . . . . . . . . Recycling Units 1 | . . . . . . . . . . . 1 . . . . . . . . . . Scanalyzers 3 | . . . . 1 . . . . . . . . . . . . . . . 2 . Garrison Access 3 | . . . . . . . . . . . 1 . . . . . . . 1 1 . Total Hacks 190 | . 6 . . 16 20 3 4 . 29 . 9 1 . 19 . 12 24 1 3 41 2 Successful 124 | . 4 . . 5 11 3 4 . 29 . 4 1 . 19 . 5 14 1 2 22 . Failed 64 | . 2 . . 10 9 . . . . . 5 . . . . 7 10 . 1 18 2 Catastrophic 11 | . . . . 2 1 . . . . . 1 . . . . 1 2 . . 2 2 Database Lockouts 2 | . . . . 1 . . . . . . . . . . . . . . . 1 . Manual 61 | . . . . 7 10 1 . . . . 4 . . . . 7 14 1 . 17 . Terminals 110 | . 6 . . 13 17 3 . . . . . . . . . 12 22 . 2 33 2 Fabricators 6 | . . . . . . . . . . . 4 . . . . . 2 . . . . Repair Stations 3 | . . . . . 3 . . . . . . . . . . . . . . . . Recycling Units 4 | . . . . . . . . . . . 4 . . . . . . . . . . Scanalyzers 10 | . . . . 3 . . . . . . . . . . . . . . . 7 . Garrison Access 3 | . . . . . . . . . . . 1 . . . . . . . 1 1 . Terminal Hacks 88 | . 4 . . 4 4 3 4 . 29 . . 1 . 19 . 2 8 1 1 8 . Record 22 | . . . . . . . 3 . 11 . . . . 7 . . . 1 . . . Part Schematic 12 | . . . . . . . . . 8 . . . . 4 . . . . . . . Robot Schematic 7 | . . . . . . . . . 7 . . . . . . . . . . . . Robot Analysis 4 | . . . . . . . . . . . . . . 4 . . . . . . . Prototype ID Bank 9 | . . . . 1 . . . . 3 . . . . 4 . . 1 . . . . Open Door 3 | . . . . . . . 1 . . . . 1 . . . . 1 . . . . Branch Access Points 5 | . . . . 2 . 1 . . . . . . . . . 1 . . . 1 . Emergency Access Points 1 | . . . . . . . . . . . . . . . . . 1 . . . . Machine Index 1 | . . . . . 1 . . . . . . . . . . . . . . . . Terminal Index 1 | . . . . . 1 . . . . . . . . . . . . . . . . Unreport Threat 2 | . . . . . . 1 . . . . . . . . . . . . . 1 . Locate Traps 3 | . 1 . . . . . . . . . . . . . . . 2 . . . . Disarm Traps 2 | . . . . . . . . . . . . . . . . . . . . 2 . Reprogram Traps 1 | . 1 . . . . . . . . . . . . . . . . . . . . Dispatch Records 1 | . . . . . 1 . . . . . . . . . . . . . . . . Recall Reinforcements 1 | . . . . . . . . . . . . . . . . . . . . 1 . Hauler Manifests 2 | . 1 . . 1 . . . . . . . . . . . . . . . . . Registered Components 1 | . 1 . . . . . . . . . . . . . . . . . . . . Registered Prototypes 2 | . . . . . . . . . . . . . . . . . 1 . . 1 . Zone Layout 8 | . . . . . 1 1 . . . . . . . . . 1 2 . 1 2 . Fabricator Hacks 5 | . . . . . . . . . . . 3 . . . . . 2 . . . . Load Schematic 2 | . . . . . . . . . . . 1 . . . . . 1 . . . . Build 3 | . . . . . . . . . . . 2 . . . . . 1 . . . . Repair Station Hacks 2 | . . . . . 2 . . . . . . . . . . . . . . . . Scan Component 1 | . . . . . 1 . . . . . . . . . . . . . . . . Repair 1 | . . . . . 1 . . . . . . . . . . . . . . . . Recycling Unit Hacks . | . . . . . . . . . . . . . . . . . . . . . . Scanalyzer 7 | . . . . 1 . . . . . . . . . . . . . . . 6 . Insert Component 1 | . . . . . . . . . . . . . . . . . . . . 1 . Analyze 2 | . . . . . . . . . . . . . . . . . . . . 2 . Retrieve Study 4 | . . . . 1 . . . . . . . . . . . . . . . 3 . Garrison Access Hacks 2 | . . . . . . . . . . . . . . . . . . . 1 1 . Seal Access 2 | . . . . . . . . . . . . . . . . . . . 1 1 . Unauthorized Hacks 20 | . . . . . 5 . . . . . 1 . . . . 3 4 . . 7 . Terminals 19 | . . . . . 5 . . . . . . . . . . 3 4 . . 7 . Track 8 | . . . . . 3 . . . . . . . . . . 1 1 . . 3 . Botnet 6 | . . . . . 1 . . . . . . . . . . 1 1 . . 3 . Disrupt 3 | . . . . . . . . . . . . . . . . . 2 . . 1 . Operators 2 | . . . . . 1 . . . . . . . . . . 1 . . . . . Fabricators . | . . . . . . . . . . . . . . . . . . . . . . Repair Stations . | . . . . . . . . . . . . . . . . . . . . . . Recycling Units 1 | . . . . . . . . . . . 1 . . . . . . . . . . Recyclers 1 | . . . . . . . . . . . 1 . . . . . . . . . . Scanalyzers . | . . . . . . . . . . . . . . . . . . . . . . Garrison Access . | . . . . . . . . . . . . . . . . . . . . . . Data Cores Recovered 1 | . . . . 1 . . . . . . . . . . . . . . . . . Used . | . . . . . . . . . . . . . . . . . . . . . . Hacking Detections 36 | . 1 . . 5 5 1 . . . . 4 . . . . 4 7 . 1 7 1 Full Trace Events 3 | . . . . . . . . . . . . . . . . 1 1 . . . 1 Feedback Events . | . . . . . . . . . . . . . . . . . . . . . . Feedback Blocked . | . . . . . . . . . . . . . . . . . . . . . . Robot Schematics Acquired 8 | . . . . . . . . . 7 . . . . . . . . . . 1 . Robots Built 4 | . . . . . . . . . . . 2 . . . . . 2 . . . . Authchips . | . . . . . . . . . . . . . . . . . . . . . . Time 103 | . . . . . . . . . . . 27 . . . . . 76 . . . . Total Robot Build Rating 12 | . . . . . . . . . . . 2 . . . . . 10 . . . . Part Schematics Acquired 17 | . . . . . . . . . 8 . . . . 4 . . . . . 5 . Parts Built 2 | . . . . . . . . . . . 2 . . . . . . . . . . Authchips . | . . . . . . . . . . . . . . . . . . . . . . Time 139 | . . . . . . . . . . . 139 . . . . . . . . . . Total Part Build Rating 18 | . . . . . . . . . . . 18 . . . . . . . . . . Part Studies Acquired 4 | . . . . 1 . . . . . . . . . . . . . . . 3 . Parts Repaired 1 | . . . . . 1 . . . . . . . . . . . . . . . . Time 70 | . . . . . 70 . . . . . . . . . . . . . . . . Parts Recycled . | . . . . . . . . . . . . . . . . . . . . . . Recycled Matter . | . . . . . . . . . . . . . . . . . . . . . . Retrieved Matter . | . . . . . . . . . . . . . . . . . . . . . . Retrieved Components . | . . . . . . . . . . . . . . . . . . . . . . Parts Scanalyzed 1 | . . . . . . . . . . . . . . . . . . . . 1 . Part Schematics Acquired 1 | . . . . . . . . . . . . . . . . . . . . 1 . Parts Damaged 1 | . . . . . . . . . . . . . . . . . . . . 1 . Bothacking | -11 -10 -10 -10 -8 -7 -6 -6 -6 -6 -5 -5 -5 -5 -5 -4 -4 -4 -4 -3 -3 -2 ------------ Run | Yrd Mat Min Sub Mat Fac Fac Low Low Dat Pro Fac Upp Upp Zhi Pro Fac Arm Lab Res Tes Res Used RIF Installer . | . . . . . . . . . . . . . . . . . . . . . . Robots Hacked . | . . . . . . . . . . . . . . . . . . . . . . Non-combat . | . . . . . . . . . . . . . . . . . . . . . . Combat . | . . . . . . . . . . . . . . . . . . . . . . Robot Hacks Applied . | . . . . . . . . . . . . . . . . . . . . . . Relay Couplers Released . | . . . . . . . . . . . . . . . . . . . . . . Fabnet Peak Effective % . | . . . . . . . . . . . . . . . . . . . . . . Robots Rewired 10 | . . . . . . . 1 . . . . 4 . . . . 4 . . 1 . Allies Hacked 1 | . . . . . . . . . . . . 1 . . . . . . . . . Hacks Repelled . | . . . . . . . . . . . . . . . . . . . . . . Allies | -11 -10 -10 -10 -8 -7 -6 -6 -6 -6 -5 -5 -5 -5 -5 -4 -4 -4 -4 -3 -3 -2 -------- Run | Yrd Mat Min Sub Mat Fac Fac Low Low Dat Pro Fac Upp Upp Zhi Pro Fac Arm Lab Res Tes Res Total Allies 23 | . . . . . . . 1 . . . 2 4 . . . . 15 . . 1 . Largest Group 13 | . . . . . . . 1 1 . . 2 4 . . . . 13 7 . 1 . Highest-Rated Group 571 | . . . . . . . 32 32 . . 20 120 . . . . 571 329 . 165 . Highest-Rated Ally 165 | . . . . . . . 32 32 . . 10 30 . . . . 58 47 . 165 . Total Orders 2 | . . . . . . . . . . . 1 . . . 1 . . . . . . TUNNEL 1 | . . . . . . . . . . . 1 . . . . . . . . . . EXPLORE 1 | . . . . . . . . . . . . . . . 1 . . . . . . Ally Attacks 109 | . . . . . . . . 4 . . . 19 . . . . 82 . . 4 . Total Damage 3491 | . . . . . . . . 153 . . . 483 . . . . 2672 . . 183 . Kills 22 | . . . . . . . . 1 . . . 3 . . . . 17 . . 1 . Allies Corrupted 3 | . . . . . . . . . . . . 2 . . . . . . . 1 . Allies Melted 1 | . . . . . . . . . . . . . . . . . 1 . . . . Intel | -11 -10 -10 -10 -8 -7 -6 -6 -6 -6 -5 -5 -5 -5 -5 -4 -4 -4 -4 -3 -3 -2 ------- Run | Yrd Mat Min Sub Mat Fac Fac Low Low Dat Pro Fac Upp Upp Zhi Pro Fac Arm Lab Res Tes Res Active Infowar (turns) 8711 | . 159 489 371 908 255 576 672 315 95 375 1044 664 638 619 54 3 . . . 1025 449 Optics 2289 | . . . . . . 119 672 315 95 375 659 . . . . . . . . 54 . Sensors 3997 | . . 1 . 763 255 275 . . . . 385 664 234 . . . . . . 971 449 Terrain 620 | . . . . . . . . . . . 436 . 184 . . . . . . . . Structural 1839 | . 159 488 371 821 . . . . . . . . . . . . . . . . . T.N.C. 90 | . . . . . 90 . . . . . . . . . . . . . . . . Jamming 4804 | . . . . . . 339 672 315 95 375 1044 664 627 619 54 . . . . . . ECM 3 | . . . . . . . . . . . . . . . . 3 . . . . . Robot Analysis Total 4 | . . . . . . . . . . . . . . 4 . . . . . . . Derelict Logs Recovered 5 | . . 2 . . . . . . . 1 . . . . 2 . . . . . . Drone Launches 2 | . . . . . . . . . . . . . . . 2 . . . . . . Drone Recoveries 1 | . . . . . . . . . . . . . . . 1 . . . . . . Exploration | -11 -10 -10 -10 -8 -7 -6 -6 -6 -6 -5 -5 -5 -5 -5 -4 -4 -4 -4 -3 -3 -2 ------------- Run | Yrd Mat Min Sub Mat Fac Fac Low Low Dat Pro Fac Upp Upp Zhi Pro Fac Arm Lab Res Tes Res Turns Passed 14794 | 54 234 489 371 908 255 576 672 315 95 375 1044 664 944 619 984 607 1827 421 516 2139 685 Spaces Moved 8594 | 30 112 278 169 812 550 456 488 227 81 257 731 392 332 181 324 284 844 175 242 1216 413 Core 50 | 2 . . . . . . . . . . . . . . . . . . . . 48 Treads 2785 | 28 112 278 169 164 . . . . . . . . 112 181 323 142 826 175 242 33 . Legs 4098 | . . . . 230 . 379 488 227 81 257 501 225 1 . 1 142 18 . . 1183 365 Wheels 616 | . . . . . . . . . . . 230 167 219 . . . . . . . . Hover . | . . . . . . . . . . . . . . . . . . . . . . Flight 1045 | . . . . 418 550 77 . . . . . . . . . . . . . . . Fastest Speed 23 | 50 160 160 160 26 23 23 106 118 118 118 95 123 160 260 160 160 160 160 160 105 50 Average Speed 133 | 152 160 160 160 82 25 80 117 118 118 118 116 145 240 316 274 176 160 160 160 114 115 Slowest Speed 360 | 160 160 160 160 160 29 180 118 118 118 118 200 193 360 360 360 190 240 160 160 185 190 Overloaded Moves 306 | . . . . 246 60 . . . . . . . . . . . . . . . . Propulsion Burnouts . | . . . . . . . . . . . . . . . . . . . . . . Robots Hopped 6 | . . . . 4 2 . . . . . . . . . . . . . . . . Potential Cave-ins . | . . . . . . . . . . . . . . . . . . . . . . Cave-ins Triggered . | . . . . . . . . . . . . . . . . . . . . . . Exploration Rate (%) 41 | 4 26 65 14 44 18 16 72 23 73 55 20 48 56 62 52 10 49 90 11 97 16 Regions Visited 21 Branch Regions 13 Pre-discovered Areas 5 | . . 1 . . . . . . 1 . . . . 3 . . . . . . . Known Exits Taken 13 | . . . . 1 1 1 . . . . 1 1 1 1 1 1 1 1 1 1 . Unknown Exits Taken 8 | 1 1 1 1 . . . 1 1 1 1 . . . . . . . . . . . Scrap Searched 10 | . . 3 . . . . 1 1 . . . 1 2 . 2 . . . . . . Spaces Dug 24 | . . . . . 3 3 . . . . 2 2 . . . . 5 . 4 5 . Terrain Destroyed 771 | . . . . 59 3 22 108 11 . 60 15 59 145 . 10 3 110 5 40 90 31 Melee 3 | . . . . . 3 . . . . . . . . . . . . . . . . Projectile 191 | . . . . . . 22 7 11 . 3 15 12 19 . 10 3 20 5 21 38 5 AOE 577 | . . . . 59 . . 101 . . 57 . 47 126 . . . 90 . 19 52 26 Terrain Rammed . | . . . . . . . . . . . . . . . . . . . . . . Walls Destroyed . | . . . . . . . . . . . . . . . . . . . . . . Machines Disabled . | . . . . . . . . . . . . . . . . . . . . . . Actions | -11 -10 -10 -10 -8 -7 -6 -6 -6 -6 -5 -5 -5 -5 -5 -4 -4 -4 -4 -3 -3 -2 --------- Run | Yrd Mat Min Sub Mat Fac Fac Low Low Dat Pro Fac Upp Upp Zhi Pro Fac Arm Lab Res Tes Res Total 10645 | 35 136 298 245 971 616 566 548 246 80 300 864 464 400 212 378 343 1174 246 303 1676 544 Wait 487 | . 1 . 66 37 15 9 17 2 . 19 45 28 8 . 15 4 118 . . 77 26 Move 8561 | 29 111 277 168 803 545 455 487 226 80 256 730 391 331 180 323 283 843 174 241 1215 413 Hop 6 | . . . . 4 2 . . . . . . . . . . . . . . . . Pick Up 92 | . 3 4 . 8 6 4 1 1 . . 4 1 1 3 . 12 17 2 5 19 1 Fast Attach 216 | 6 3 . . 14 6 17 1 1 . . 19 6 4 6 6 8 28 11 7 61 12 Attach 56 | . . . . 5 4 3 . . . 1 2 . 2 3 2 2 2 7 3 17 3 Detach 78 | . 2 . . 9 3 6 1 . . . 6 2 . 3 . 2 11 8 1 21 3 Swap 124 | . . 2 . 12 5 5 9 . . 3 11 3 8 1 . 7 18 3 5 25 7 Drop 175 | . . 2 . 22 6 14 3 2 . . 13 4 4 6 . 2 37 5 6 44 5 Fire 734 | . 15 12 11 53 . 34 24 14 . 21 30 13 39 9 32 21 76 36 34 191 69 Melee 45 | . . . . 4 24 17 . . . . . . . . . . . . . . . Ram 4 | . . . . . . . . . . . 1 . 3 . . . . . . . . Kick 12 | . . . . . . 2 . . . . 3 . . . . 2 . . . . 5 Crush 3 | . 1 1 . . . . . . . . . . . . . . . . 1 . . Escape Stasis . | . . . . . . . . . . . . . . . . . . . . . . Rewire 52 | . . . . . . . 5 . . . . 16 . 1 . . 24 . . 6 . Trap . | . . . . . . . . . . . . . . . . . . . . . . Miscellaneous . | . . . . . . . . . . . . . . . . . . . . . . Route ------- -11/Scrapyard -10/Materials -10/Mines (discovered 2 exits: [*Mat] / [*Sub]) -10/Subcaves -8/Materials (discovered 2 exits: *Fac x2) -7/Factory (discovered 2 exits: *Fac / *Low) -6/Factory (discovered 2 exits: *Low x2) -6/Lower Caves -6/Lower Caves -6/Data Miner -5/Proximity Caves -5/Factory (discovered 2 exits: Fac / *Upp) -5/Upper Caves -5/Upper Caves -5/Zhirov -4/Proximity Caves -4/Factory (discovered 3 exits: Upp x2 / *Arm) -4/Armory (discovered 3 exits: *Res x2 / *Lab) -4/Lab -3/Research (discovered 2 exits: Res / *Tes) -3/Testing -2/Research (discovered 1 exit: [*Acc]) History --------- Turn | Location | Event 10 | -11/Scrapyard | Discovered new exit (range 15) 55 | -11/Scrapyard | Entered Materials 271 | -10/Materials | Discovered new exit (range 10) 289 | -10/Materials | Entered Mines 305 | -10/Mines | A weapon hastily lodged in a ceiling crevice suddenly fell to the ground 314 | -10/Mines | Build established: Mutant 406 | -10/Mines | Learned location of Storage (-9) 540 | -10/Mines | Found a Scrap Suit stashed away for nefarious purposes 544 | -10/Mines | Found Scrap Suit 627 | -10/Mines | Discovered new exit (range 16) 729 | -10/Mines | Discovered new exit (range 9) 732 | -10/Mines | Learned 4 Materials zone layouts 750 | -10/Mines | Found a damaged Exp. Sensor Array with a note attached 754 | -10/Mines | Found Prototype Device 755 | -10/Mines | Identified Exp. Sensor Array 778 | -10/Mines | Entered Subcaves 779 | -10/Subcaves | Approached by a straggling Scientist 1143 | -10/Subcaves | Discovered new exit (range 5) 1149 | -10/Subcaves | Entered Materials 1149 | -8/Materials | Evolved 4 slots: Propulsion x1, Utility x3 1150 | -8/Materials | Identified exit to Factory 1490 | -8/Materials | Discovered exit to Factory (range 15) 1757 | -8/Materials | Lost 3 parts (1p2w) 1903 | -8/Materials | Central database locked down 2057 | -8/Materials | Entered Factory 2057 | -7/Factory | Evolved 2 slots: Propulsion x1, Utility x1 2157 | -7/Factory | Discovered new exit (range 11) 2166 | -7/Factory | Identified exit to Lower Caves 2192 | -7/Factory | Garrison activated, responded to threat 2206 | -7/Factory | Build established: Sprinter 2209 | -7/Factory | Repaired Cld. VTOL Module 2288 | -7/Factory | Discovered new exit (range 20) 2312 | -7/Factory | Identified exit to Factory 2312 | -7/Factory | Entered another Factory area 2312 | -6/Factory | Evolved 2 slots: Power x1, Propulsion x1 2672 | -6/Factory | Build established: Mutant 2775 | -6/Factory | Identified exit to Lower Caves 2888 | -6/Factory | Entered Lower Caves 3218 | -6/Lower Caves | Attracted the attention of an 0b10 outpost 3479 | -6/Lower Caves | Discovered new exit (range 12) 3492 | -6/Lower Caves | Entered an active Warlord outpost 3509 | -6/Lower Caves | Learned location of 1 exit from Research 3509 | -6/Lower Caves | Learned Research terminal intel 3509 | -6/Lower Caves | Learned Extension garrison access intel 3560 | -6/Lower Caves | Entered another Lower Caves area 3560 | -6/Lower Caves | Accompanied by 1 ally 3575 | -6/Lower Caves | Discovered new exit (range 11) 3875 | -6/Lower Caves | Entered Data Miner 3875 | -6/Data Miner | Discovered new exit (range 6) 3893 | -6/Data Miner | Met Data Miner 3922 | -6/Data Miner | Learned location of Section 7 (-2) 3922 | -6/Data Miner | Acquired the access code to Warlord's prototype stash 3943 | -6/Data Miner | Received God Mode back door access code from Data Miner 3970 | -6/Data Miner | Entered Proximity Caves 4012 | -5/Proximity Caves | Attracted the attention of an 0b10 checkpoint 4115 | -5/Proximity Caves | Lost 3 parts (2u1w) 4247 | -5/Proximity Caves | Learned 4 Factory zone layouts 4306 | -5/Proximity Caves | Discovered new exit (range 13) 4345 | -5/Proximity Caves | Entered Factory 4345 | -5/Factory | Evolved 2 slots: Utility x2 4346 | -5/Factory | Identified exit to Factory 4539 | -5/Factory | Fabricated T-07 Excavator? 4762 | -5/Factory | Spotted B-75 Beast 4774 | -5/Factory | Lost 3 parts (1p2n) 4826 | -5/Factory | Fabricated Enh. Nova Cannon (x2) 5013 | -5/Factory | Discovered new exit (range 12) 5023 | -5/Factory | Identified exit to Upper Caves 5211 | -5/Factory | Lost 4 parts (1p1n2u) 5237 | -5/Factory | Build established: Scavenger-Mutant 5389 | -5/Factory | Entered Upper Caves 5494 | -5/Upper Caves | Encountered a Warlord checkpoint 5536 | -5/Upper Caves | Attacked by a delusional Derelict stockpiling Unaware 5678 | -5/Upper Caves | P-70 Sage assimilated allied Warrior 6a 5937 | -5/Upper Caves | Discovered new exit (range 13) 6051 | -5/Upper Caves | Identified exit to Upper Caves 6053 | -5/Upper Caves | Entered another Upper Caves area 6265 | -5/Upper Caves | Attracted the attention of an 0b10 outpost 6303 | -5/Upper Caves | Destroyed 10 combat bots 6512 | -5/Upper Caves | Lost 3 parts (3n) 6702 | -5/Upper Caves | Spotted B-75 Beast 6721 | -5/Upper Caves | Destroyed B-75 Beast 6879 | -5/Upper Caves | Discovered new exit (range 9) 6907 | -5/Upper Caves | Identified exit to Zhirov 6984 | -5/Upper Caves | Build established: Mutant 6997 | -5/Upper Caves | Entered Zhirov 6997 | -5/Zhirov | Discovered new exit (range 3) 7057 | -5/Zhirov | Met Zhirov 7127 | -5/Zhirov | Learned location of Quarantine (-2) 7127 | -5/Zhirov | Learned location of Testing (-3) 7127 | -5/Zhirov | Learned location of Command (-1) 7153 | -5/Zhirov | Zhirov requested help retrieving the SGEMP Prototype 7203 | -5/Zhirov | Found Alien Artifact 7203 | -5/Zhirov | Identified Integrated Dissipator 7203 | -5/Zhirov | Installed Integrated Dissipator, increased core heat dissipation (+20) 7251 | -5/Zhirov | Found Alien Artifact 7613 | -5/Zhirov | Identified exit to Proximity Caves 7616 | -5/Zhirov | Entered Proximity Caves 7779 | -4/Proximity Caves | Learned 4 Research zone layouts 7826 | -4/Proximity Caves | Learned location of 1 exit from Research 7988 | -4/Proximity Caves | Lost 4 parts (3u1w) 8493 | -4/Proximity Caves | Discovered exit to Factory (range 15) 8600 | -4/Proximity Caves | Entered Factory 8600 | -4/Factory | Evolved 2 slots: Utility x2 8616 | -4/Factory | Identified exit to Upper Caves 8616 | -4/Factory | Identified exit to Armory 8984 | -4/Factory | Build established: Scavenger-Mutant 9139 | -4/Factory | Found Prototype Device 9139 | -4/Factory | Identified Exp. ECM Suite 9186 | -4/Factory | Incoming investigation squad redirected 9207 | -4/Factory | Entered Armory 9208 | -4/Armory | Met VL-GR5, who suggested a friendly competition 9236 | -4/Armory | Lost 4 parts (2n2u) 9345 | -4/Armory | Found Prototype Hackware 9345 | -4/Armory | Identified Exp. Hacking Suite 9353 | -4/Armory | Found Prototype Processor 9354 | -4/Armory | Identified Exp. Signal Interpreter 9602 | -4/Armory | Build established: Hacker-Mutant 9669 | -4/Armory | Fabricated H-66 Slayer? 9727 | -4/Armory | Destroyed 7 combat bots 9928 | -4/Armory | Discovered new exit (range 3) 10300 | -4/Armory | Found Fusion Bomb Launcher 10321 | -4/Armory | Found Fusion Bomb Launcher 10632 | -4/Armory | Assisted by bots powering up and referring to "LRC-V3" 10648 | -4/Armory | Discovered new exit (range 4) 10727 | -4/Armory | Identified exit to Lab 10867 | -4/Armory | Lost 3 allies 10909 | -4/Armory | Discovered new exit (range 4) 10921 | -4/Armory | Identified exit to Research 10949 | -4/Armory | Build established: Commander-Mutant 11034 | -4/Armory | Entered Lab 11034 | -4/Lab | Accompanied by 7 allies 11034 | -4/Lab | Discovered exit to Research (range 9) 11055 | -4/Lab | Unable to decrypt terminal 11055 | -4/Lab | Opened the door to a hidden lab 11056 | -4/Lab | Gained access to the hidden lab's interior 11059 | -4/Lab | Detected by scanners 11065 | -4/Lab | Confronted by A5 11102 | -4/Lab | System corruption reached 10% 11118 | -4/Lab | Lost 3 parts (1p1n1u) 11121 | -4/Lab | Destroyed A5 11173 | -4/Lab | Found Prototype Hackware 11173 | -4/Lab | Identified Exp. System Shield 11176 | -4/Lab | Found Exp. Hacking Suite 11180 | -4/Lab | Found Prototype Protection 11180 | -4/Lab | Identified Med. Regenerative Plating 11183 | -4/Lab | Lost 3 parts (1p1n1u) 11186 | -4/Lab | Destroyed 8 combat bots 11214 | -4/Lab | Unable to decrypt terminal 11244 | -4/Lab | Found Alien Artifact 11244 | -4/Lab | Identified Core Regenerator 11244 | -4/Lab | Used Core Regenerator, restored core integrity (+287) 11255 | -4/Lab | Found Alien Artifact 11255 | -4/Lab | Identified Integrated Mediator 11255 | -4/Lab | Installed Integrated Mediator, increased core attachment efficiency 11290 | -4/Lab | Found Prototype Device 11290 | -4/Lab | Identified AEGIS Remote Shield 11301 | -4/Lab | Found Prototype Energy Cannon 11301 | -4/Lab | Identified Warp Cannon 11310 | -4/Lab | Found Prototype Energy Gun 11310 | -4/Lab | Identified Hyp. EM Gauss Rifle 11358 | -4/Lab | Found Prototype Hackware 11358 | -4/Lab | Identified Quantum Router 11403 | -4/Lab | Found Alien Artifact 11455 | -4/Lab | Build established: Hacker-Mutant 11455 | -4/Lab | Entered Research 11455 | -3/Research | Evolved 2 slots: Utility x2 11456 | -3/Research | Identified exit to Testing 11456 | -3/Research | Identified exit to Research 11458 | -3/Research | Loaded intel: 21 terminal locations 11627 | -3/Research | Spotted B-86 Titan 11757 | -3/Research | Spotted B-86 Titan 11861 | -3/Research | Found Prototype Device 11861 | -3/Research | Identified Exp. Thermal Defense Suite 11944 | -3/Research | Found Prototype Device 11944 | -3/Research | Identified Exp. EM Disruption Field 11971 | -3/Research | Entered Testing 12323 | -3/Testing | Central database locked down 12368 | -3/Testing | Found Prototype Launcher 12368 | -3/Testing | Identified Z-bomb Delivery System 12470 | -3/Testing | Spotted Striker 12477 | -3/Testing | Spotted Striker 12565 | -3/Testing | Spotted Alpha 7 12568 | -3/Testing | Destroyed Striker 12575 | -3/Testing | Destroyed Striker 12602 | -3/Testing | Destroyed Alpha 7 12646 | -3/Testing | Stole the SGEMP Prototype 12806 | -3/Testing | Found Prototype Hackware 12806 | -3/Testing | Identified Ghost Barrier 12878 | -3/Testing | Found Prototype Processor 12878 | -3/Testing | Identified Spectral Analyzer 12931 | -3/Testing | Intercept squad dispatched 12937 | -3/Testing | Spotted Tracker 12938 | -3/Testing | Destroyed Tracker 12946 | -3/Testing | Found Exp. Targeting Computer 12950 | -3/Testing | Spotted Combat Programmer 12954 | -3/Testing | Destroyed Combat Programmer 13001 | -3/Testing | Discovered exit to Research (range 15) 13145 | -3/Testing | Build established: Scavenger-Mutant 13150 | -3/Testing | Found Prototype Hackware 13151 | -3/Testing | Identified System Mapper 13221 | -3/Testing | First assault squad dispatched 13406 | -3/Testing | System corruption reached 10% 13454 | -3/Testing | Intercept squad dispatched 13464 | -3/Testing | Spotted Tracker 13464 | -3/Testing | Spotted Tracker 13473 | -3/Testing | Destroyed Tracker 13483 | -3/Testing | Spotted Combat Programmer 13484 | -3/Testing | Spotted Combat Programmer 13489 | -3/Testing | Destroyed Tracker 13500 | -3/Testing | Destroyed Combat Programmer 13524 | -3/Testing | Destroyed Combat Programmer 13529 | -3/Testing | Lost 8 parts (1p2n3u2w) 13529 | -3/Testing | Found Prototype Energy Gun 13529 | -3/Testing | Identified Immobilizer 13533 | -3/Testing | Found Prototype Device 13533 | -3/Testing | Identified Exp. Phase Shifter 13546 | -3/Testing | Found Exp. Targeting Computer 13555 | -3/Testing | Scanned by Researcher 13727 | -3/Testing | Rewired PY-OIC0L509J0 13769 | -3/Testing | Found Prototype Protection 13771 | -3/Testing | Identified Centrium Heavy Armor Plating 13888 | -3/Testing | Lost 5 parts (1n4u) 13900 | -3/Testing | Destroyed 9 combat bots 14003 | -3/Testing | Intercept squad dispatched 14003 | -3/Testing | Spotted Tracker 14003 | -3/Testing | Spotted Combat Programmer 14030 | -3/Testing | System corruption reached 30% 14032 | -3/Testing | Destroyed Combat Programmer 14042 | -3/Testing | Destroyed Tracker 14062 | -3/Testing | Lost 6 parts (1p2n3u) 14102 | -3/Testing | Found Exp. Targeting Computer 14110 | -3/Testing | Entered Research 14110 | -2/Research | Evolved 2 slots: Utility x2 14269 | -2/Research | Build established: Hacker-Mutant 14470 | -2/Research | Destroyed 7 combat bots 14610 | -2/Research | First assault squad dispatched 14623 | -2/Research | Lost 4 parts (3u1w) 14659 | -2/Research | Intercept squad dispatched 14689 | -2/Research | Spotted Tracker 14689 | -2/Research | Spotted Tracker 14689 | -2/Research | Destroyed Tracker 14691 | -2/Research | Destroyed Tracker 14709 | -2/Research | Spotted B-90 Cyclops 14750 | -2/Research | System corruption reached 10% 14760 | -2/Research | Spotted Combat Programmer 14778 | -2/Research | Core integrity fell below 50% 14792 | -2/Research | Core integrity fell below 20% 14795 | -2/Research | Discovered new exit (range 7) 14795 | -2/Research | Destroyed by H-88 Terminator with KE Penetrator Last Messages --------------- 14775_ Penetrated by EMDS Slug. 14775_ Dropped Imp. Gyrokinetic Inverter. 14777_ Exp. Energy Well destroyed. 14779_ W-44 Eye sends out distress signal. 14781_ Penetrated by EMDS Slug. 14788_ Exp. Coolant Injector destroyed. 14789_ System corrupted: Matter fused (-9). 14789_ P-80 Master resets P-80 Master, system corruption cleaned. 14789_ Slug penetrates Wall. 14791_ Penetrated by EMDS Slug. 14792_ Slug penetrates Quantum Separator. 14792_ Penetrated by Slug. 14793_ Combat Programmer resets Y-72 Warden, system corruption cleaned. 14794_ Penetrated by Slug. 14794_ Slug penetrates Wall. 14794_ EMDS Slug penetrates G-73 Enforcer. 14795_ EXIT=FOUND 14795_ Y-72 Warden destroyed. 14795_ Exp. Signal Interpreter destroyed. 14795_ Penetrated by Slug. Map ----- +----------------------------------------------------+ | ????????# ""######??????????????????? | | ????????# #??????????????????? | | ????????# #??????????????????? | | ????????# #???????? #????????? | | ????????# #??????" #????????? | | ????????#######" #???? #????????? | | ###????????????# #?? #????????? | | #????????????# # #????????? | | #????????????# + #????????? | | #????????????# # #????????? | | #????????????# #?? #????????? | | #????????????# #????######????????? | | #????????????# #??????????????????? | | #???########## #??????????????????? | | #???#"""T"""## #??????????????????? | | #######""" """## #??????????????????? | | + == #??????????????????? | | #?# == #??????????????????? | | #?# == #?????? ???????????? | | #?# h #???? ????????????? | | #?# #??? ?????????????? | | ### ###+####???????????? | | / """"""" #???????????? | | ### """"""" #???????????? | | ###?# """"""" #???????????? | | ###### b pp gg ! @ #???????????? | | # p p =%[ #???????????? | | + g =[ w #???????????? | | # ################# #???????????? | | ###### #???????????????? ??????????? | | ?????##+##???????????????? #?????????? | | ????? ????????????????< +?????????? | | ??? ?????????????? #?????????? | | ??# """"""" ???????????? #?????????? | | ### """"""" #???????????? ##?????????? | | # """"""" #???????????? #??????????? | | # #???????????? #??????????? | | # ] ? #???????????? #??????????? | | #########???????????????? #??????????? | | ???????????????????????????#??????????? | | ??????????????????????????????????????? | | ???????????????????????????????????????? | | ???????????????????????????????????????? | | ???????????????????????????????????????? | | ???????????????????????????????????????? | | ???????????????????????????????????????? | | ???????????????????????????????????????? | | ???????????????????????????????????????? | | ???????????????????????????????????????? | | ???????????????????????????????????????? | +----------------------------------------------------+ Best States ------------- Heat Dissipation 110 Coolant Potential 120 Energy Generation 62 Energy Capacity 1760 Matter Stores 300 Matter Capacity 800 Sight Range 24 Robot Scan Range 20 Terrain Scan Range 16 Terrain Scan Density 10 ECM Strength 3 Jamming Range 12 Power Amplification 60 Additional Mass Support 9 Base Temperature (-) 150 Armor Coverage 825 Resistance: TH 30 Resistance: EX 25 Resistance: EM 25 Utility Shielding 33 Weapon Shielding 66 Point Defense Rating 80 Weapon Cycling 15 Phase Shifting 20 Evasion (%) 90 Targeting Accuracy 24 Melee Accuracy 5 Target Analysis 8 Core Analysis 6 Recoil Reduction 5 Energy Filtering 50 Particle Charging 30 Offensive Hacking 22 Defensive Hacking 55 Item Schematics ----------------- Combat Drone Bay | -6/Data Miner | Free Lgt. Regenerative Plating | -6/Data Miner | Free Cld. Gravmag System | -6/Data Miner | Free Imp. Thermal Defense Suite | -6/Data Miner | Free Tesla Bomb Launcher | -6/Data Miner | Free Hvy. Siege Treads | -6/Data Miner | Free Adv. Reaction Control System | -6/Data Miner | Free Phase Gun | -6/Data Miner | Free Assault Drone Bay | -5/Zhirov | Free Exp. Heat Sink | -5/Zhirov | Free Exp. Optical Array | -5/Zhirov | Free Imp. Arc Thrower | -5/Zhirov | Free Exp. Flexi-carbon Leg | -3/Testing | Scanalyzed Enh. Force Rifle | -3/Testing | Archive Adv. EM Disruption Field | -3/Testing | Archive Exp. Energy Well | -3/Testing | Archive Exp. Matter Compressor | -3/Testing | Archive Robot Schematics ------------------ G-50 Soldier | -6/Data Miner | Free Y-64 Sentinel | -6/Data Miner | Free B-60 Warrior | -6/Data Miner | Free Y-54 Guardian | -6/Data Miner | Free H-66 Slayer | -6/Data Miner | Free M-22 Extractor | -6/Data Miner | Free W-44 Eye | -6/Data Miner | Free K-01 Serf | -3/Testing | Archive Fabricated ------------ T-07 Excavator | x2 | -5/Factory | Preloaded Enh. Nova Cannon | x2 | -5/Factory | Preloaded H-66 Slayer | x2 | -4/Armory Repaired ---------- Cld. VTOL Module | 30% | -7/Factory Studied --------- Lgt. Nuclear Core | -8/Materials | Hacked Flexi-carbon Leg | -3/Testing | Hacked Imp. Thunder Leg | -3/Testing | Hacked Particle Reactor | -3/Testing | Hacked Alien Tech Used ----------------- Integrated Dissipator Core Regenerator Integrated Mediator Achievements -------------- Fancy Inventory Hot Stuff Tailor-made Thread The Needle Around The Corner Well-fed Force Field Challenges ------------ None Game ------ Seed RocketExperimentalTreads Manual? 0 Play Time 02:34:09 Cumulative 107.4 hours Start 2025.11.14 @ 11:59:46 End 2025.11.16 @ 11:39:53 Sessions 5 Manual Loads 0 Difficulty Rogue Special Mode None Game No. 92 Rogue 92 Adventurer 0 Explorer 0 Win Type - Total 1 Types 1/0/0/0/0/0/0/0/0/0 Lore% 55 Gallery% 61 Achievement% 45 Wizard Run 0 Options --------- Layout 0 ASCII 0 Keyboard 1 Movement Vi Keybinds 0 Fullscreen 1 Font 18/SmallcapsGlow Map View 76x50 Zoom Use 0% Tactical HUD 1 Map Filters NONE Filters NONE Steam 1 RUN: ad4f32fe-9800-488e-888a-8d36c681b137